bitfinex/quotes_SOLUSD_20250424
["timestamp","ask_amount","ask_price","bid_price","bid_amount"]
[1745472150005,20.49401864,148.06,148.05,0.03]
[1745472151507,20.49401864,148.06,148.05,5.07380524]
[1745472152606,20.49401864,148.06,148.05,0.03]
[1745472154515,20.49401864,148.06,148.05,5.07521593]
[1745472160717,20.49401864,148.06,148.05,0.03]
[1745472163795,20.49401864,148.06,148.05,5.07923261]
[1745472166619,20.49401864,148.06,148.05,0.03]
[1745472168525,20.49401864,148.06,148.05,5.08082021]
[1745472170722,20.49401864,148.06,148.05,14.01593451]
[1745472171225,0.70648666,148.08,148.05,14.01593451]
[1745472171418,14.40648666,148.1,148.07,8.9351143]
[1745472171608,13.7,148.1,148.09,8.9351143]
[1745472172836,20.45219446,148.1,148.09,8.9351143]
[1745472186528,20.45219446,148.1,148.07,8.9351143]
[1745472186731,0.70648666,148.09,148.07,8.9351143]
[1745472186939,0.70648666,148.09,148.08,8.9351143]
[1745472187332,20.45219446,148.1,148.08,8.9351143]
[1745472188051,0.70648666,148.09,148.08,8.9351143]
[1745472188244,7.45913707,148.09,148.08,8.9351143]
[1745472190852,6.75265041,148.09,148.08,8.9351143]
[1745472196762,7.45913707,148.09,148.08,8.9351143]
[1745472196954,7.45913707,148.09,148.07,8.9351143]
[1745472197151,7.45913707,148.09,148.06,8.9351143]
[1745472198691,24.3407631,148.09,148.05,0.03]
[1745472198845,24.3407631,148.09,148.06,8.9351143]
[1745472203359,6.7535625,148.07,148.06,8.9351143]
[1745472203657,7.46004916,148.07,148.06,8.9351143]
[1745472205659,7.46004916,148.07,148.05,8.9651143]
[1745472205962,7.46004916,148.07,148.05,0.03]
[1745472206445,27.58476316,148.06,148.05,0.03]
[1745472206850,27.58476316,148.05,148.02,0.03]
[1745472207049,8.9351143,148.03,148.02,0.03]
[1745472207249,22.6351143,148.03,148.02,0.03]
[1745472207853,29.39050172,148.03,148.02,0.03]
[1745472208460,20.45538742,148.03,148.02,0.03]
[1745472210262,13.7,148.03,148.02,8.9651143]
[1745472210759,13.7,148.03,148.02,0.03]
[1745472211060,13.7,148.03,148.02,8.9651143]
[1745472211261,13.7,148.03,148.02,0.03]
[1745472211461,13.7,148.03,148.02,8.9651143]
[1745472216175,13.7,148.03,148.02,0.03]
[1745472216562,13.7,148.03,148.02,8.9651143]
[1745472217348,20.45538742,148.03,148.02,8.9651143]
[1745472217549,20.45538742,148.03,148.02,0.03]
[1745472219645,20.45538742,148.03,148.02,8.9651143]
[1745472219850,13.7,148.03,148.02,8.9651143]
[1745472231873,13.7,148.03,148.02,15.86311967]
[1745472232175,13.7,148.07,148.02,15.86311967]
[1745472232366,13.7,148.07,148.06,8.9351143]
[1745472234354,20.4535625,148.07,148.06,8.9351143]
[1745472234673,1.5211,148.09,148.06,8.9351143]
[1745472234674,6.75270697,148.09,148.06,8.9351143]
[1745472234878,6.75270697,148.09,148.08,8.9351143]
[1745472235053,20.45270697,148.09,148.08,8.9351143]
[1745472236983,20.45270697,148.09,148.07,8.9351143]
[1745472237981,13.7,148.09,148.08,8.9351143]
[1745472238185,20.45265041,148.09,148.08,8.9351143]
[1745472238493,13.7,148.09,148.08,8.9351143]
[1745472239995,0.063,148.1,148.08,8.9351143]
[1745472240168,0.063,148.1,148.09,8.9351143]
[1745472242891,0.063,148.1,148.09,35.07727587]
[1745472243700,0.063,148.1,148.09,41.82992628]
[1745472243885,0.063,148.14,148.13,8.9351143]
[1745472251694,13.743,148.14,148.13,8.9351143]
[1745472259880,13.743,148.14,148.13,15.68594127]
[1745472260398,13.743,148.14,148.13,8.9351143]
[1745472263312,13.743,148.14,148.13,15.68594127]
[1745472264576,13.743,148.14,148.13,8.9351143]
[1745472265478,0.063,148.14,148.13,8.9351143]
[1745472266091,0.063,148.14,148.13,15.68594127]
[1745472268988,0.063,148.14,148.13,8.9351143]
[1745472270002,0.063,148.14,148.13,15.68594127]
[1745472270380,0.063,148.14,148.13,15.82810284]
[1745472272900,0.063,148.14,148.13,9.07727587]
[1745472273900,0.063,148.14,148.13,8.9351143]
[1745472275998,0.063,148.14,148.12,34.9351143]
[1745472276779,0.063,148.14,148.12,8.9351143]
[1745472277803,6.81337127,148.14,148.12,8.9351143]
[1745472278004,6.81337127,148.14,148.11,34.9351143]
[1745472278608,0.70648666,148.13,148.1,8.9351143]
[1745472278807,13.68,148.12,148.1,8.9351143]
[1745472279505,13.68,148.12,148.09,34.9351143]
[1745472279993,6.75173857,148.11,148.09,34.9351143]
[1745472280395,6.75173857,148.11,148.09,26.0]
[1745472280592,6.75173857,148.11,148.09,8.9351143]
[1745472281397,6.75173857,148.11,148.06,6.89611962]
[1745472281611,7.45822523,148.11,148.07,34.9351143]
[1745472282294,7.45822523,148.11,148.07,8.9351143]
[1745472282499,8.9351143,148.1,148.06,8.9351143]
[1745472282702,0.70648666,148.09,148.06,8.9351143]
[1745472283212,0.70648666,148.1,148.06,8.9351143]
[1745472284407,6.75265041,148.09,148.04,0.03]
[1745472284589,0.70648666,148.08,148.05,8.9351143]
[1745472284904,13.68,148.07,148.05,8.9351143]
[1745472286410,13.68,148.07,148.04,8.9651143]
[1745472286618,6.75401864,148.06,148.04,8.9651143]
[1745472286808,6.75401864,148.06,148.04,0.03]
[1745472287009,7.4605053,148.06,148.04,0.03]
[1745472287200,6.75401864,148.06,148.04,0.03]
[1745472287510,6.75401864,148.06,148.04,8.9651143]
[1745472289820,6.75401864,148.06,148.04,0.03]
[1745472290218,0.70648666,148.05,148.04,0.03]
[1745472291118,7.4605053,148.06,148.04,0.03]
[1745472291930,16.3956196,148.06,148.04,0.03]
[1745472292097,8.9351143,148.05,148.04,0.03]
[1745472292422,8.9351143,148.05,148.03,0.03]
[1745472292630,11.30750096,148.04,148.03,1e-08]
[1745472293012,18.06243205,148.04,148.03,1e-08]
[1745472297338,36.71208091,148.04,148.03,1e-08]
[1745472299621,15.69050172,148.03,148.02,1e-08]
[1745472300154,51.3707807,148.03,148.0,1e-08]
[1745472300322,27.58476316,148.01,148.0,1e-08]
[1745472301659,34.3410634,148.01,148.0,1e-08]
[1745472304944,15.69141454,148.01,148.0,1e-08]
[1745472315464,34.3410634,148.01,148.0,1e-08]
[1745472315657,34.3410634,148.01,147.99,1e-08]
[1745472315658,18.64964886,148.0,147.99,1e-08]
[1745472315959,28.29124982,148.0,147.99,1e-08]
[1745472316161,54.29124982,148.0,147.97,0.03]
[1745472316459,8.9351143,147.98,147.97,0.03]
[1745472316661,9.64160096,147.98,147.97,0.03]
[1745472317052,16.39927091,147.98,147.97,0.03]
[1745472319256,35.04891977,147.98,147.97,1e-08]
[1745472319458,70.78937697,147.98,147.97,1e-08]
[1745472323770,44.64964886,147.95,147.94,1e-08]
[1745472323969,67.97124982,147.95,147.94,1e-08]
[1745472324960,23.32160096,147.95,147.94,1e-08]
[1745472325564,30.08064117,147.95,147.94,1e-08]
[1745472328565,21.14552687,147.95,147.94,1e-08]
[1745472328772,29.37415451,147.95,147.94,1e-08]
[1745472329671,48.02380337,147.95,147.94,1e-08]
[1745472329851,48.73029003,147.95,147.94,1e-08]
[1745472337476,30.08064117,147.95,147.94,1e-08]
[1745472345371,48.73029003,147.95,147.94,1e-08]
[1745472345567,48.8724516,147.95,147.94,1e-08]
[1745472347590,39.79517573,147.95,147.94,1e-08]
[1745472347782,48.73029003,147.95,147.94,1e-08]
[1745472352190,7.46552687,147.95,147.94,1e-08]
[1745472352375,13.68,147.95,147.94,1e-08]
[1745472357678,13.68,147.95,147.94,8.93511431]
[1745472357873,13.68,147.95,147.94,1e-08]
[1745472365717,29.37415451,147.95,147.94,1e-08]
[1745472366096,30.08064117,147.95,147.94,1e-08]
[1745472367396,48.73029003,147.95,147.94,1e-08]
[1745472367706,74.8724516,147.95,147.94,1e-08]
[1745472369807,48.8724516,147.95,147.94,1e-08]
[1745472371088,8.9351143,147.9,147.88,0.03]
[1745472371288,21.14826906,147.89,147.88,0.03]
[1745472372703,48.73303222,147.89,147.88,0.03]
[1745472373013,65.63748823,147.89,147.86,1.1789892]
[1745472373318,8.9351143,147.88,147.86,1.1789892]
[1745472373493,0.70648666,147.87,147.86,1.1789892]
[1745472375090,7.46918362,147.87,147.86,1.1789892]
[1745472388398,6.76269696,147.87,147.86,1.1789892]
[1745472393904,20.44269696,147.87,147.86,1.1789892]
[1745472403437,29.37781126,147.87,147.86,1.1789892]
[1745472404314,29.37781126,147.87,147.86,1e-08]
[1745472407133,36.95751126,147.87,147.86,1e-08]
[1745472407319,63.46738193,147.86,147.85,1e-08]
[1745472407640,36.69302877,147.86,147.85,1e-08]
[1745472408824,62.69302877,147.86,147.85,1e-08]
[1745472409223,69.4561831,147.86,147.85,1e-08]
[1745472410331,61.05440415,147.86,147.85,1e-08]
[1745472410735,52.11928985,147.86,147.85,1e-08]
[1745472410928,61.05440415,147.86,147.85,1e-08]
[1745472415752,7.46964099,147.86,147.85,1e-08]
[1745472419487,6.76315433,147.86,147.85,1e-08]
[1745472420376,13.68,147.87,147.85,8.93511431]
[1745472420553,13.68,147.87,147.86,8.9351143]
[1745472421259,20.44272149,147.87,147.85,1e-08]
[1745472421573,20.44272149,147.87,147.85,8.93511431]
[1745472422367,20.44272149,147.87,147.86,8.9351143]
[1745472422950,20.44272149,147.87,147.85,8.93511431]
[1745472423956,13.68,147.87,147.86,8.9351143]
[1745472424155,13.68,147.87,147.85,8.93511431]
[1745472424454,20.44278291,147.87,147.85,8.93511431]
[1745472425049,20.44278291,147.87,147.85,1e-08]
[1745472426255,20.44278291,147.87,147.85,8.93511431]
[1745472426643,20.44278291,147.87,147.86,8.9351143]
[1745472426854,20.44278291,147.87,147.85,1e-08]
[1745472427065,20.44278291,147.87,147.85,8.93511431]
[1745472429564,20.44278291,147.87,147.85,1e-08]
[1745472429766,0.70648666,147.86,147.85,1e-08]
[1745472430280,28.29124982,147.86,147.85,1e-08]
[1745472431255,35.05440415,147.86,147.85,1e-08]
[1745472436268,7.46964099,147.86,147.85,1e-08]
[1745472438354,21.14926567,147.87,147.85,1e-08]
[1745472438546,20.44277901,147.87,147.85,1e-08]
[1745472440665,20.44277901,147.87,147.85,8.93511431]
[1745472440847,13.68,147.87,147.85,8.93511431]
[1745472442263,20.44277615,147.87,147.85,8.93511431]
[1745472443277,20.44277615,147.87,147.85,1e-08]
[1745472443597,0.70648666,147.86,147.85,1e-08]
[1745472444997,7.46964099,147.86,147.85,1e-08]
[1745472447674,35.05440415,147.86,147.85,1e-08]
[1745472449298,7.46964099,147.86,147.85,1e-08]
[1745472456604,16.40475529,147.86,147.85,1e-08]
[1745472457184,35.05440415,147.86,147.85,1e-08]
[1745472460392,35.05440415,147.86,147.85,1e-08]
[1745472464785,7.46964099,147.86,147.85,1e-08]
[1745472467194,16.40475529,147.86,147.85,1e-08]
[1745472471196,35.05440415,147.86,147.85,1e-08]
[1745472475982,207.69202292,147.86,147.85,1e-08]
[1745472476183,44.64964886,147.82,147.8,0.03]
[1745472476489,41.95124982,147.81,147.8,0.03]
[1745472476891,48.71669194,147.81,147.8,0.03]
[1745472478386,21.13192878,147.81,147.8,0.03]
[1745472479013,48.71669194,147.81,147.8,0.03]
[1745472480104,30.06704308,147.81,147.8,0.03]
[1745472483941,21.13192878,147.81,147.8,0.03]
[1745472484735,30.06704308,147.81,147.8,0.03]
[1745472484905,48.71669194,147.81,147.8,0.03]
[1745472495953,39.78157764,147.81,147.8,0.03]
[1745472496252,48.71669194,147.81,147.8,0.03]
[1745472496952,39.78157764,147.81,147.8,0.03]
[1745472497234,48.71669194,147.81,147.8,0.03]
[1745472497639,21.13192878,147.81,147.8,0.03]
[1745472497825,13.66,147.81,147.8,8.9651143]
[1745472503249,13.66,147.81,147.8,15.73101416]
[1745472504026,13.66,147.81,147.8,8.9651143]
[1745472508652,13.66,147.81,147.8,15.73101416]
[1745472516763,13.66,147.84,147.8,15.73101416]
[1745472516952,13.66,147.84,147.83,8.9351143]
[1745472517140,13.66,147.84,147.8,0.03]
[1745472517346,13.66,147.84,147.83,8.9351143]
[1745472522859,13.66,147.84,147.81,6.76544212]
[1745472523265,13.66,147.84,147.82,8.9351143]
[1745472523443,13.66,147.84,147.83,8.9351143]
[1745472525972,13.66,147.84,147.83,15.69964112]
[1745472526670,13.66,147.84,147.83,8.9351143]
[1745472529774,13.66,147.84,147.83,15.69964112]
[1745472532359,13.66,147.84,147.83,8.9351143]
[1745472537269,13.66,147.84,147.82,8.9351143]
[1745472537776,13.66,147.84,147.83,8.9351143]
[1745472540182,13.66,147.84,147.83,15.69964112]
[1745472542181,13.66,147.84,147.83,8.9351143]
[1745472543889,13.66,147.84,147.83,15.69964112]
[1745472545593,13.66,147.84,147.83,8.9351143]
[1745472546797,13.66,147.84,147.83,15.69964112]
[1745472549671,13.66,147.84,147.83,8.9351143]
[1745472552498,13.66,147.84,147.83,15.69964112]
[1745472553182,13.64,147.87,147.83,15.69964112]
[1745472553380,13.64,147.87,147.85,8.9351143]
[1745472557301,13.64,147.87,147.81,6.76544212]
[1745472557504,13.64,147.87,147.85,8.9351143]
[1745472565101,13.64,147.87,147.86,8.9351143]
[1745472566194,13.703,147.91,147.86,41.69826863]
[1745472566397,13.703,147.91,147.9,8.9351143]
[1745472570798,13.703,147.91,147.9,15.69643951]
[1745472572714,0.063,147.91,147.9,15.69643951]
[1745472576313,0.063,147.91,147.9,51.43689671]
[1745472577411,0.063,147.91,147.9,15.69643951]
[1745472578092,0.063,147.91,147.9,41.69643951]
[1745472581523,0.063,147.91,147.9,26.0]
[1745472581698,0.063,147.91,147.89,8.9351143]
[1745472583814,0.063,147.91,147.9,8.9351143]
[1745472589018,0.063,147.91,147.9,15.69643951]
[1745472592322,0.063,147.91,147.9,8.9351143]
[1745472594629,0.063,147.91,147.9,15.69643951]
[1745472596721,0.063,147.91,147.9,52.78875158]
[1745472597515,0.063,147.92,147.9,60.74745158]
[1745472597810,0.063,147.93,147.91,70.6755715]
[1745472598024,0.063,147.94,147.92,10.28670698]
[1745472598205,0.063,147.94,147.93,8.9351143]
[1745472598822,0.063,147.94,147.93,15.69506833]
[1745472601111,0.063,147.94,147.87,18.25723353]
[1745472601316,0.063,147.94,147.91,8.9351143]
[1745472602021,13.683,147.94,147.89,26.0]
[1745472602326,13.683,147.94,147.92,8.9351143]
[1745472603011,21.14898559,147.94,147.89,32.76156063]
[1745472603207,20.44249893,147.94,147.91,8.9351143]
[1745472603437,13.683,147.94,147.91,8.9351143]
[1745472604928,13.683,147.94,147.92,8.9351143]
[1745472605121,13.683,147.94,147.93,34.9351143]
[1745472605629,0.063,147.94,147.93,34.9351143]
[1745472606937,0.063,147.94,147.93,41.69506833]
[1745472611736,0.063,147.97,147.93,41.69506833]
[1745472611935,0.063,147.97,147.96,8.9351143]
[1745472612114,0.063,147.97,147.96,34.9351143]
[1745472613650,0.063,147.97,147.96,8.9351143]
[1745472622654,0.063,147.97,147.96,15.6936977]
[1745472628652,0.063,147.97,147.96,8.9351143]
[1745472629741,0.063,147.97,147.96,15.6936977]
[1745472639155,0.063,147.97,147.96,41.6936977]
[1745472643069,0.063,147.97,147.96,51.4341549]
[1745472645368,0.063,147.97,147.96,15.6936977]
[1745472647074,0.063,147.97,147.96,41.6936977]
[1745472647248,0.063,147.97,147.96,15.6936977]
[1745472647573,0.063,147.97,147.96,41.6936977]
[1745472647772,0.063,147.97,147.96,15.6936977]
[1745472650167,0.063,147.97,147.96,41.6936977]
[1745472650373,0.063,147.97,147.96,15.6936977]
[1745472654476,0.063,147.97,147.96,70.08380376]
[1745472657785,0.063,147.97,147.96,34.34334656]
[1745472659508,0.063,147.97,147.96,15.6936977]
[1745472659660,0.063,147.97,147.96,41.6936977]
[1745472662095,0.063,147.97,147.96,32.7585834]
[1745472662263,0.063,147.97,147.96,41.6936977]
[1745472664391,0.063,148.0,147.99,26.0]
[1745472664593,0.063,148.0,147.99,34.9351143]
[1745472665595,0.063,148.0,147.99,41.69232762]
[1745472669893,0.063,148.0,147.99,43.04351019]
[1745472671316,0.063,148.01,147.99,43.04351019]
[1745472671516,0.063,148.02,148.0,8.9351143]
[1745472671701,0.063,148.02,148.01,36.2858874]
[1745472673525,0.063,148.02,148.01,43.04218764]
[1745472674592,0.063,148.02,148.01,48.08660703]
[1745472676309,0.063,148.02,148.01,22.08660703]
[1745472676612,0.063,148.03,148.01,40.73625589]
[1745472676919,0.063,148.03,148.02,39.97953369]
[1745472677116,13.663,148.06,148.05,26.0]
[1745472677297,0.063,148.06,148.05,34.9351143]
[1745472677621,0.063,148.06,148.05,39.97953369]
[1745472678824,0.063,148.06,148.05,46.73400852]
[1745472679317,0.063,148.06,148.05,82.47446572]
[1745472679799,0.063,148.06,148.05,56.47446572]
[1745472680719,0.063,148.06,148.05,82.47446572]
[1745472682523,0.063,148.06,148.05,31.04441939]
[1745472682910,0.063,148.06,148.05,39.97953369]
[1745472683217,21.83847036,148.1,148.05,39.97953369]
[1745472684315,6.7528694,148.09,148.05,39.97953369]
[1745472684517,6.7528694,148.09,148.06,5.04441939]
[1745472685233,6.7528694,148.09,148.07,5.04441939]
[1745472686330,6.7528694,148.09,148.08,5.04441939]
[1745472694159,34.33763256,148.09,148.08,5.04441939]
[1745472694435,40.73193256,148.09,148.08,5.04441939]
[1745472694658,8.9351143,148.06,148.01,8.9351143]
[1745472694820,13.6,148.05,148.01,8.9351143]
[1745472696058,20.35470854,148.05,148.01,8.9351143]
[1745472699128,20.35470854,148.05,148.02,8.9351143]
[1745472700745,20.35470854,148.05,148.03,8.9351143]
[1745472701057,20.35470854,148.05,148.0,6.75671396]
[1745472701058,13.6,148.05,148.04,8.9351143]
[1745472701641,13.6,148.09,148.04,8.9351143]
[1745472701844,13.6,148.09,148.07,8.9351143]
[1745472703846,20.35282231,148.09,148.07,8.9351143]
[1745472706356,13.6,148.09,148.08,8.9351143]
[1745472718466,0.063,148.12,148.08,41.68807256]
[1745472718661,0.063,148.12,148.08,26.0]
[1745472718976,0.063,148.12,148.08,34.9351143]
[1745472719268,6.81429033,148.12,148.08,34.9351143]
[1745472720876,13.58,148.11,148.07,8.9351143]
[1745472721868,20.33182954,148.11,148.07,8.9351143]
[1745472722074,20.33182954,148.11,148.06,6.75400732]
[1745472722075,20.33182954,148.11,148.08,8.9351143]
[1745472722370,20.33182954,148.11,148.07,8.9351143]
[1745472728783,8.9351143,148.09,148.04,8.9351143]
[1745472729088,8.9351143,148.06,148.01,0.063]
[1745472729387,13.58,148.05,148.01,8.9981143]
[1745472729585,13.58,148.05,148.04,8.9351143]
[1745472730751,13.58,148.09,148.04,8.9351143]
[1745472730950,13.58,148.09,148.08,8.9351143]
[1745472733755,13.58,148.09,148.07,8.9351143]
[1745472735489,13.58,148.09,148.08,8.9351143]
[1745472737975,13.58,148.09,148.05,42.49483678]
[1745472737976,13.58,148.09,148.07,8.9351143]
[1745472738391,20.33272415,148.09,148.07,8.9351143]
[1745472740197,13.58,148.09,148.08,8.9351143]
[1745472740372,13.58,148.09,148.07,8.9351143]
[1745472742708,13.58,148.09,148.04,32.75488816]
[1745472742709,13.58,148.09,148.08,8.9351143]
[1745472744177,13.58,148.09,148.08,15.68822072]
[1745472744599,13.58,148.09,148.08,8.9351143]
[1745472747406,13.58,148.09,148.08,15.68822072]
[1745472747711,0.063,148.12,148.08,15.68822072]
[1745472747712,0.063,148.12,148.08,17.03857675]
[1745472748008,0.063,148.12,148.11,8.9351143]
[1745472748188,0.063,148.12,148.11,15.68685287]
[1745472748897,0.063,148.12,148.11,51.42731007]
[1745472749093,0.063,148.14,148.13,8.9351143]
[1745472749292,0.063,148.14,148.13,36.28485677]
[1745472749977,0.063,148.14,148.13,43.03568374]
[1745472750376,1e-08,148.16,148.14,24.91314886]
[1745472750592,0.063,148.19,148.18,18.64964886]
[1745472750791,0.063,148.19,148.18,28.93380593]
[1745472751676,0.063,148.19,148.18,8.9351143]
[1745472751877,0.063,148.19,148.18,34.9351143]
[1745472752073,0.063,148.19,148.18,41.68366336]
[1745472752587,0.063,148.19,148.18,77.42412056]
[1745472752890,0.063,148.19,148.18,46.69607385]
[1745472754888,0.063,148.19,148.18,39.94752479]
[1745472755580,0.063,148.19,148.18,82.43653105]
[1745472758703,0.063,148.19,148.18,56.43653105]
[1745472762489,0.063,148.19,148.18,46.69607385]
[1745472762686,0.063,148.19,148.18,82.43653105]
[1745472763310,0.063,148.19,148.18,46.69607385]
[1745472764316,0.063,148.19,148.18,82.43653105]
[1745472765207,0.063,148.19,148.18,77.42412056]
[1745472765412,0.063,148.19,148.18,82.40387041]
[1745472765598,0.063,148.19,148.18,46.66341321]
[1745472766414,0.063,148.19,148.18,39.91486415]
[1745472766988,0.063,148.19,148.18,34.9351143]
[1745472769525,0.063,148.19,148.18,41.68366336]
[1745472770118,0.063,148.19,148.18,34.9351143]
[1745472775623,0.063,148.19,148.18,41.68366336]
[1745472775827,0.063,148.19,148.18,46.66744417]
[1745472777136,0.063,148.19,148.18,39.91889511]
[1745472778410,0.063,148.19,148.18,46.66744417]
[1745472779951,0.063,148.19,148.18,39.91889511]
[1745472781350,0.063,148.19,148.18,4.98378081]
[1745472781931,0.063,148.19,148.18,13.91889511]
[1745472789557,0.063,148.19,148.18,20.66744417]
[1745472789755,0.063,148.19,148.18,56.40790137]
[1745472793866,0.063,148.19,148.18,56.45825642]
[1745472794065,0.063,148.19,148.18,56.45691937]
[1745472798601,0.063,148.19,148.18,13.96791311]
[1745472798774,0.063,148.19,148.18,5.03279881]
[1745472799882,0.063,148.19,148.17,8.9351143]
[1745472800072,0.063,148.19,148.18,8.9351143]
[1745472802473,0.063,148.19,148.17,8.9351143]
[1745472803655,0.063,148.19,148.16,8.9351143]
[1745472806270,0.063,148.19,148.17,8.9351143]
[1745472812288,0.063,148.19,148.18,8.9351143]
[1745472814887,0.063,148.19,148.17,8.9351143]
[1745472815287,0.063,148.19,148.16,8.9351143]
[1745472817564,0.063,148.19,148.17,8.9351143]
[1745472817996,0.063,148.19,148.18,8.9351143]
[1745472821907,0.063,148.19,148.17,8.9351143]
[1745472827406,0.063,148.19,148.18,8.9351143]
[1745472832011,0.063,148.19,148.18,15.68366336]
[1745472832212,0.063,148.19,148.18,17.03312742]
[1745472832419,0.063,148.19,148.18,15.68366336]
[1745472833129,0.063,148.19,148.18,78.77349822]
[1745472837128,0.063,148.2,148.18,52.77349822]
[1745472837303,0.063,148.2,148.19,70.6755715]
[1745472839331,0.063,148.2,148.19,77.42366516]
[1745472841528,0.063,148.21,148.19,96.07331402]
[1745472841833,0.03,148.24,148.23,34.9351143]
[1745472843934,0.03,148.24,148.23,41.68138698]
[1745472845418,0.03,148.25,148.23,41.68138698]
[1745472845619,0.03,148.25,148.24,8.9351143]
[1745472846134,0.03,148.25,148.24,15.68093189]
[1745472847436,0.03,148.25,148.24,8.9351143]
[1745472852034,0.03,148.25,148.24,15.68093189]
[1745472854935,0.03,148.27,148.26,26.0]
[1745472855107,0.03,148.27,148.26,70.6755715]
[1745472856147,0.03,148.27,148.26,26.0]
[1745472856325,0.03,148.27,148.26,8.9351143]
[1745472856521,0.03,148.27,148.24,26.0]
[1745472856721,0.03,148.27,148.24,8.9351143]
[1745472857257,0.03,148.27,148.26,8.9351143]
[1745472858856,0.03,148.27,148.24,26.0]
[1745472859060,0.03,148.27,148.26,8.9351143]
[1745472866750,0.03,148.27,148.26,15.68002189]
[1745472870660,0.03,148.27,148.26,51.42047909]
[1745472873140,0.03,148.27,148.26,15.68002189]
[1745472873955,0.03,148.27,148.26,8.9351143]
[1745472874157,0.03,148.27,148.25,8.9351143]
[1745472874365,0.03,148.27,148.23,6.74620841]
[1745472874366,0.03,148.27,148.23,8.9351143]
[1745472876062,6.77445268,148.27,148.24,8.9351143]
[1745472876259,6.77445268,148.27,148.23,8.9351143]
[1745472877679,15.70956698,148.27,148.2,0.063]
[1745472877964,10.4932143,148.26,148.2,26.063]
[1745472878163,8.9351143,148.24,148.2,0.063]
[1745472879356,15.68047686,148.25,148.2,8.9981143]
[1745472879653,13.54,148.24,148.2,8.9981143]
[1745472880065,20.28621798,148.24,148.2,8.9981143]
[1745472880372,20.28621798,148.24,148.21,8.9351143]
[1745472881443,20.28621798,148.24,148.2,8.9981143]
[1745472882570,8.9351143,148.22,148.2,0.063]
[1745472882770,8.9351143,148.23,148.2,0.063]
[1745472884169,46.08587626,148.24,148.2,0.063]
[1745472887472,15.68184213,148.22,148.2,0.063]
[1745472888172,8.9351143,148.21,148.2,0.063]
[1745472889042,6.74718305,148.21,148.2,0.063]
[1745472891182,15.68229735,148.21,148.2,0.063]
[1745472897077,8.9351143,148.22,148.2,0.063]
[1745472898177,6.74718305,148.21,148.2,0.063]
[1745472898980,15.68229735,148.21,148.2,0.063]
[1745472899164,8.9351143,148.22,148.2,0.063]
[1745472899854,6.74627268,148.23,148.2,0.063]
[1745472901055,8.9351143,148.22,148.2,0.063]
[1745472902888,8.9351143,148.21,148.2,0.063]
[1745472903880,15.68229735,148.21,148.2,0.063]
[1745472904686,6.74718305,148.21,148.2,0.063]
[1745472904864,20.28718305,148.21,148.2,0.063]
[1745472905476,29.22229735,148.21,148.2,0.063]
[1745472906184,20.28718305,148.21,148.2,0.063]
[1745472907467,13.54,148.21,148.2,0.063]
[1745472909585,6.74689132,148.22,148.2,0.063]
[1745472911061,8.9351143,148.21,148.2,0.063]
[1745472912990,15.68229735,148.21,148.2,0.063]
[1745472917878,34.33194621,148.21,148.2,0.063]
[1745472918287,15.68229735,148.21,148.2,0.063]
[1745472920498,6.74718305,148.21,148.2,0.063]
[1745472921003,13.54,148.23,148.2,8.9981143]
[1745472921183,13.54,148.23,148.22,8.9351143]
[1745472922299,13.54,148.23,148.21,8.9351143]
[1745472924084,13.54,148.23,148.22,8.9351143]
[1745472935818,6.74581976,148.24,148.22,8.9351143]
[1745472936017,6.74581976,148.24,148.23,8.9351143]
[1745472936431,6.74536256,148.25,148.21,8.9351143]
[1745472937010,15.68047686,148.25,148.21,8.9351143]
[1745472937323,15.68047686,148.25,148.2,0.063]
[1745472937623,15.68047686,148.25,148.21,8.9351143]
[1745472938636,6.74536256,148.25,148.21,8.9351143]
[1745472938801,6.74536256,148.25,148.22,8.9351143]
[1745472941503,6.74536256,148.25,148.23,8.9351143]
[1745472947335,13.54,148.26,148.24,8.9351143]